Cogmind - Beta 10.2 @@@ ROGUE MODE // 2021.01.25 @ 00:05:07 Player: Demise Result: Self-destructed Performance ------------- Evolutions (6) 3000 Regions Visited (11) 2200 Robots Destroyed (190) 950 Value Destroyed (4693) 4693 Prototype IDs (54) 1080 Alien Tech Used (0) 0 Bonus (-1197) -1197 TOTAL SCORE: 10726 Bonus ------- High Alert Combat Kills 176 Follower Combat Kills 84 Aligned with FarCom 300 Friendly Fire -1757 Cogmind --------- Core Integrity 1028/1150 Matter 269/300 Energy 224/240 System Corruption 0% Temperature Cool (48) Movement Flying (34) Location -4/Factory Parts ------- > --- POWER (2) -------- Micro Fission Core Micro Fission Core > --- PROPULSION (6) --- Field Propulsion Drive Impulse Thruster Impulse Thruster > --- UTILITY (9) ------ Experimental Optical Array Experimental Sensor Array Advanced Signal Interpreter Improved Hacking Suite Advanced Hacking Suite Advanced Hacking Suite System Shield System Shield Advanced System Shield > --- WEAPON (2) ------- Hypervelocity Railgun Thunder Hammer > --- INVENTORY (4) ---- YI-UF0's Bottomless Matter Pit (1500) Guided Plasma Cannon Improved Grenade Launcher Peak State ------------ > --- POWER ------------ Micro Fission Core Micro Fission Core > --- PROPULSION ------- Cooled Cesium-ion Thruster Field Propulsion Drive Field Propulsion Drive Nuclear Pulse Array Impulse Thruster > --- UTILITY ---------- Experimental Optical Array Experimental Sensor Array Advanced Signal Interpreter Improved Hacking Suite Advanced Hacking Suite Advanced Hacking Suite System Shield System Shield Advanced System Shield > --- WEAPON ----------- Hypervelocity Railgun Thunder Hammer > --- INVENTORY -------- YI-UF0's Bottomless Matter Pit Guided Plasma Cannon Improved Grenade Launcher Improved Plasma Cutter [Rating: 111] Favorites ----------- Power Improved Ion Engine Engine Improved Ion Engine Power Core Micro Nuclear Core Propulsion Advanced Treads Treads Advanced Treads Flight Unit Field Propulsion Drive Utility High-capacity Storage Unit Device Experimental Sensor Array Storage High-capacity Storage Unit Processor Salvage Targeting Computer Hackware System Shield Protection Improved Medium Armor Plating Weapon Improved Assault Rifle Energy Gun Small Laser Energy Cannon Guided Plasma Cannon Ballistic Gun Improved Assault Rifle Launcher Mini Grenade Launcher Special Weapon Plasma Cutter Impact Weapon Thunder Hammer Slashing Weapon Katana Special Melee Weapon Datajack Build | -11 -10 -10 -9 -9 -9 -8 -8 -7 -6 -5 -4 ------- Run | Scr Mat Min Mat Min Exi Min Mat Fac Fac Fac Fac Slots Evolved 12 | . . . 2 . . . 2 2 2 2 2 Power 1 | . . . . . . . . 1 . . . Propulsion 4 | . . . . . . . . 1 1 2 . Utility 7 | . . . 2 . . . 2 . 1 . 2 Weapon . | . . . . . . . . . . . . Parts Attached 214 | 4 14 16 29 . 12 . 49 44 22 11 13 Power 20 | . 2 3 1 . . . 5 4 2 3 . Engine 12 | . 1 3 1 . . . 5 2 . . . Core 8 | . 1 . . . . . . 2 2 3 . Reactor . | . . . . . . . . . . . . Propulsion 38 | 2 1 2 6 . . . 7 4 10 2 4 Treads 18 | 2 1 2 6 . . . 7 . . . . Leg . | . . . . . . . . . . . . Wheel . | . . . . . . . . . . . . Hover . | . . . . . . . . . . . . Flight 20 | . . . . . . . . 4 10 2 4 Utility 85 | . 6 3 10 . 9 . 16 23 9 4 5 Device 17 | . . . . . . . 1 8 3 3 2 Storage 23 | . 5 3 2 . 8 . 3 2 . . . Processor 8 | . 1 . 2 . . . 2 2 . . 1 Hackware 9 | . . . . . . . . 3 3 1 2 Protection 28 | . . . 6 . 1 . 10 8 3 . . Artifact . | . . . . . . . . . . . . Weapon 71 | 2 5 8 12 . 3 . 21 13 1 2 4 Energy Gun 1 | 1 . . . . . . . . . . . Energy Cannon 3 | . . . . . . . . 2 . . 1 Ballistic Gun 47 | 1 4 3 11 . 2 . 16 7 . 2 1 Ballistic Cannon . | . . . . . . . . . . . . Launcher 6 | . 1 3 1 . . . . 1 . . . Special Weapon 3 | . . 2 . . . . . . . . 1 Impact Weapon 1 | . . . . . . . . . . . 1 Slashing Weapon 7 | . . . . . . . 3 3 1 . . Piercing Weapon . | . . . . . . . . . . . . Special Melee Weapon 3 | . . . . . 1 . 2 . . . . Unidentified Prototypes 7 | . . 2 1 . . . 1 . 1 . 2 Parts Lost 10 | . . 2 1 . . . 3 1 . . 3 Power 1 | . . . . . . . 1 . . . . Propulsion 4 | . . 2 . . . . . . . . 2 Utility 2 | . . . 1 . . . 1 . . . . Weapon 3 | . . . . . . . 1 1 . . 1 Highest Loss Streak 3 | . . 2 1 . . . 1 1 . . 3 Average Slot Usage (%) 98 | . 95 98 99 100 88 100 99 99 99 93 92 Engine 8 | . 2 14 11 11 11 11 8 6 3 . . Core 2 | . 9 . . . . . . 6 9 11 10 Treads 16 | . 28 26 21 22 22 22 18 . . . . Flight 5 | . . . . . . . . 23 25 28 25 Device 1 | . . . . . . . . 3 5 5 6 Storage 27 | . 26 28 33 44 41 44 36 11 . . . Processor 3 | . . . 2 . . . 6 5 6 5 7 Hackware 6 | . . . . . . . . 21 32 29 30 Protection 4 | . . . 7 . 2 . 10 3 . . . Ballistic Gun 16 | . 26 23 21 22 2 22 17 12 6 5 2 Naked Turns . | . . . . . . . . . . . . Heaviest Build 181 | 2 43 64 93 93 141 141 173 181 25 25 22 Greatest Support 65 | 3 40 42 45 45 45 45 46 18 39 55 65 Greatest Overweight (x) 10 | . 3 2 2 2 3 3 3 10 1 . . Average Overweight (x) 1 | . . . 1 2 2 3 3 2 . . . Largest Inventory Capacity 44 | 4 16 18 30 30 36 36 44 44 12 4 4 Average Capacity 23 | 4 13 16 24 30 32 36 36 16 4 4 4 Most Carried 44 | 4 16 17 30 30 36 36 44 44 6 4 4 Average Carried 22 | 2 12 15 23 29 29 36 35 14 3 3 3 Final Capacity 44 | 4 16 18 30 30 36 36 44 12 4 4 4 Final Carried 43 | 4 16 17 30 30 36 36 43 7 4 4 3 Class Distribution -------------------- 55% | Hauler-Mutant 19% | Mutant 10% | Hacker-Mutant 8% | Hacker-Sprinter Dominant Class ---------------- Mutant | -10/Materials Mutant | -10/Mines Hauler-Mutant | -9/Materials Hauler-Mutant | -9/Mines Hauler-Mutant | -9/Exiles Hauler-Mutant | -8/Mines Hauler-Mutant | -8/Materials Hacker-Mutant | -7/Factory Hacker-Sprinter | -6/Factory Hacker-Sprinter | -5/Factory Wizard-Scout | -4/Factory Resources | -11 -10 -10 -9 -9 -9 -8 -8 -7 -6 -5 -4 ----------- Run | Scr Mat Min Mat Min Exi Min Mat Fac Fac Fac Fac Matter Collected 7330 | 227 532 1971 1337 124 149 52 1467 443 817 55 156 Remotely . | . . . . . . . . . . . . Salvage Created 7029 | 97 588 431 1941 102 . 29 2213 509 814 109 196 Parts 422 | 9 36 23 133 13 . 3 130 37 31 3 4 Haulers Intercepted 19 | . 2 . 4 . . . 6 1 4 1 1 Recyclers Shooed 4 | . . . 2 . . . . . 1 1 . Parts Field Recycled . | . . . . . . . . . . . . Retrieved Matter . | . . . . . . . . . . . . Parts Self-Destructed . | . . . . . . . . . . . . Prevented . | . . . . . . . . . . . . Kills | -11 -10 -10 -9 -9 -9 -8 -8 -7 -6 -5 -4 ------- Run | Scr Mat Min Mat Min Exi Min Mat Fac Fac Fac Fac Combat Hostiles Destroyed 112 | . 9 12 39 7 . . 32 10 2 . 1 Melee 1 | . . . . . . . 1 . . . . Guns 97 | . 6 7 36 7 . . 31 8 2 . . Cannons 1 | . . . . . . . . . . . 1 AOE 13 | . 3 5 3 . . . . 2 . . . Classes Destroyed 16 | 2 6 2 3 . . . 2 1 . . . Worker 13 | . 1 1 5 . . . 3 . 2 . 1 Builder 6 | . . . 3 . . 1 2 . . . . Tunneler 6 | 3 1 . 1 . . . 1 . . . . Hauler 19 | . 2 . 4 . . . 6 1 4 1 1 Recycler 6 | 1 2 1 . . . . 1 . 1 . . Mechanic 2 | . . . . . . . 1 . 1 . . Operator 8 | . 2 . 1 . . . 4 1 . . . Watcher 18 | . 3 . 4 . . . 5 1 3 . 2 Swarmer 33 | . 3 6 7 7 . . 7 3 . . . Grunt 48 | . 6 4 22 . . . 14 2 . . . Brawler 1 | . . . 1 . . . . . . . . Sentry 21 | . . . 9 . . . 9 2 . . 1 Demolisher 1 | . . 1 . . . . . . . . . Hunter 2 | . . . . . . . 2 . . . . Programmer 5 | . . . . . . . . 3 2 . . Assembled 1 | . . 1 . . . . . . . . . Best Kill Streak 6 | 3 6 4 6 4 . 1 4 3 2 1 2 Combat Bots Only 6 | . 3 3 6 4 . . 3 3 1 . 1 Max Kills in Single Turn 3 | 1 2 3 2 2 . 1 2 1 1 1 1 Gunslinging 1 | . . . 1 1 . . . . . . . Exploded 3 | . 2 3 2 . . . . 1 . . . Melee 1 | . . . . . . . 1 . . . . Uniques/NPCs Destroyed 1 | . . 1 . . . . . . . . . YI-UF0 (-10/Mines) Combat | -11 -10 -10 -9 -9 -9 -8 -8 -7 -6 -5 -4 -------- Run | Scr Mat Min Mat Min Exi Min Mat Fac Fac Fac Fac Damage Taken 5561 | . 446 506 1055 203 . . 1913 832 219 . 387 Core 770 | . 64 50 134 47 . . 147 156 50 . 122 Absorbed by Shields . | . . . . . . . . . . . . Core Remaining (%) 78 | 100 . 54 . . . 54 73 77 94 100 . Volleys Fired 463 | 15 49 39 128 16 . 1 158 36 11 2 8 Largest 2 | 2 2 2 2 2 . 2 2 2 1 1 1 Hottest 120 | 60 70 100 70 46 . 46 48 120 28 40 94 Shots Fired 883 | 30 98 76 254 30 . 2 305 67 11 2 8 Gun 836 | 30 95 47 252 30 . 2 305 61 11 2 1 Cannon 5 | . . . . . . . . 4 . . 1 Launcher 12 | . 3 5 2 . . . . 2 . . . Special 30 | . . 24 . . . . . . . . 6 Kinetic 818 | 15 92 47 252 30 . 2 305 61 11 2 1 Thermal 52 | 15 3 24 . . . . . 4 . . 6 Explosive 12 | . 3 5 2 . . . . 2 . . . Electromagnetic 1 | . . . . . . . . . . . 1 Robot Hit Streak 21 | 7 10 11 21 7 . 1 18 17 . . 1 Robot Miss Streak 4 | 2 4 4 3 2 . 1 4 2 . . 3 Penetration Max . | . . . . . . . . . . . . Secondary Targets 8 | . . 1 1 2 . . 4 . . . . Max Gunslinging Chain 1 | . . 1 1 1 . . 1 . . . . Shots Hit Robots 652 | 20 57 46 180 20 4 1 224 47 37 7 9 Core Hits 293 | 6 29 24 76 7 . 1 94 29 23 1 3 Critical Hits 6 | . . 1 2 . . . 1 . 2 . . Critical Kills 3 | . . . 2 . . . . . 1 . . Critical Parts Destroyed 3 | . . 1 . . . . 1 . 1 . . Melee Attacks 158 | . . . . . 4 . 6 9 74 40 25 Impact 22 | . . . . . . . . . . . 22 Slashing 132 | . . . . . . . 6 9 74 40 3 Piercing . | . . . . . . . . . . . . Sneak Attacks 17 | . . . . . 4 . . . 9 2 2 Combat Hostiles . | . . . . . . . . . . . . Follow-up Attacks . | . . . . . . . . . . . . Damage Inflicted 13727 | 183 1126 1006 3109 333 . 27 3349 1220 2397 423 554 Guns 9215 | 183 883 426 2842 333 . 27 3296 845 372 8 . Cannons 203 | . . . . . . . . 169 . . 34 Explosions 1065 | . 243 401 258 . . . . 163 . . . Melee 2985 | . . . . . . . . 40 2025 415 505 Ramming 65 | . . . 9 . . . 53 3 . . . Kinetic 9085 | 53 883 426 2842 333 . 27 3296 845 372 8 . Thermal 593 | 130 100 179 . . . . . 169 . . 15 Explosive 965 | . 143 401 258 . . . . 163 . . . Electromagnetic 34 | . . . . . . . . . . . 34 Impact 356 | . . . . . . . . . . . 356 Slashing 2629 | . . . . . . . . 40 2025 415 149 Piercing . | . . . . . . . . . . . . Highest Corruption 4 | . . . 4 4 4 4 . 2 2 . . Average Corruption 3 | . . . 3 4 4 4 . 1 1 . . Corruption Purged 2 | . . . . . . . . . 2 . . Effects 110 | . . . 60 25 10 8 . 4 3 . . Message Errors 33 | . . . 18 8 2 3 . . 2 . . Matter Fused 28 | . . . 18 6 2 2 . . . . . Heat Flow Errors 12 | . . . 7 2 . 1 . 2 . . . Energy Discharges 10 | . . . 5 3 2 . . . . . . Data Loss (minor) 20 | . . . 10 2 4 2 . 2 . . . Targeting Errors 5 | . . . 2 2 . . . . 1 . . Weapon Failures 2 | . . . . 2 . . . . . . . Overload Shots . | . . . . . . . . . . . . Overflow Damage 559 | . 60 . 2 . . . . 67 192 72 166 Projectiles 37 | . . . . . . . . 37 . . . Explosions 62 | . 60 . 2 . . . . . . . . Melee 460 | . . . . . . . . 30 192 72 166 Knockbacks 2 | . . . . . . . . . . . 2 Impact 2 | . . . . . . . . . . . 2 Kinetic . | . . . . . . . . . . . . Secondary . | . . . . . . . . . . . . Self-Inflicted Damage 92 | . . 25 . . . . . 67 . . . Shots 3 | . . 1 . . . . . 2 . . . Rammed 6 | . . . 2 . . . 3 1 . . . Targets Rammed 7 | . . . 2 . . . 4 1 . . . Kicked . | . . . . . . . . . . . . Crushed 1 | . . . . . . . 1 . . . . Highest Temperature 344 | 20 30 126 268 226 . 171 2 344 19 86 164 Average Temperature 33 | 9 9 19 47 102 . 71 1 137 1 20 30 Received Heat Transfer 1449 | . 204 57 417 . . . 594 138 15 . 24 Effects 4 | . . . 1 . . . . 3 . . . Shutdowns 1 | . . . . . . . . 1 . . . Interference 3 | . . . 1 . . . . 2 . . . Siege Activations . | . . . . . . . . . . . . Robots Corrupted . | . . . . . . . . . . . . Combat Hostiles . | . . . . . . . . . . . . Parts Fried 4 | . . . . . . . 1 . . . 3 Impact Corruptions 6 | . . . . . . . . . . . 6 Robots Melted . | . . . . . . . . . . . . Combat Hostiles . | . . . . . . . . . . . . Parts Melted 1 | . . . 1 . . . . . . . . Heat Transferred 1299 | 300 50 592 . . . . . 320 . . 37 Parts Sabotaged . | . . . . . . . . . . . . Parts Stolen . | . . . . . . . . . . . . Parts Stripped . | . . . . . . . . . . . . Power Chain Reactions . | . . . . . . . . . . . . Missiles Intercepted . | . . . . . . . . . . . . Alert | -11 -10 -10 -9 -9 -9 -8 -8 -7 -6 -5 -4 ------- Run | Scr Mat Min Mat Min Exi Min Mat Fac Fac Fac Fac Peak Influence 700 | 20 305 197 700 448 . 100 612 326 610 534 326 Initial 273 | . 13 1 . 273 . . . 273 12 11 261 Average 245 | 4 90 44 384 230 . 62 280 156 305 175 243 Maximum Alert Level 3 | . 1 . 3 2 . . 2 1 2 2 1 Low Security (%) 49 | 100 84 100 24 24 . 100 42 73 32 72 20 Level 1 27 | . 15 . 26 73 . . 32 26 12 . 79 Level 2 22 | . . . 46 1 . . 25 . 55 27 . Level 3 . | . . . 2 . . . . . . . . Level 4 . | . . . . . . . . . . . . Level 5 . | . . . . . . . . . . . . High Security . | . . . . . . . . . . . . Max Security . | . . . . . . . . . . . . Squads Dispatched 35 | . 3 1 8 1 . . 6 6 4 3 3 Investigation 14 | . 1 1 7 . . . 2 . 1 1 1 Extermination 8 | . . . . . . . . 3 2 1 2 Reinforcement 11 | . 2 . 1 . . . 3 3 1 1 . Assault 1 | . . . . 1 . . . . . . . Garrison 1 | . . . . . . . 1 . . . . Intercept . | . . . . . . . . . . . . Construction Impeded 1 | . . . . . . . . 1 . . . Haulers Reinforced 1 | . . . . . . . . . 1 . . Stealth | -11 -10 -10 -9 -9 -9 -8 -8 -7 -6 -5 -4 --------- Run | Scr Mat Min Mat Min Exi Min Mat Fac Fac Fac Fac Distress Signals 10 | . 1 . 3 . . . 4 . . . 2 Communications Jammed . | . . . . . . . . . . . . Distress Signals . | . . . . . . . . . . . . Times Spotted 222 | . 22 13 56 7 . . 57 14 17 10 26 Peak Tracking Total 13 | . 3 3 8 4 . . 3 3 4 4 13 Tactical Retreats 22 | . 2 . 6 1 . . 3 . 7 . 3 Traps | -11 -10 -10 -9 -9 -9 -8 -8 -7 -6 -5 -4 ------- Run | Scr Mat Min Mat Min Exi Min Mat Fac Fac Fac Fac Traps Triggered 6 | . 2 . 3 . . . . . . 1 . Indirectly . | . . . . . . . . . . . . Trap Hack Attempts 18 | . . . . . . . 18 . . . . Triggered . | . . . . . . . . . . . . Disarmed 3 | . . . . . . . 3 . . . . Reprogrammed 1 | . . . . . . . 1 . . . . Reused 1 | . . . . . . . 1 . . . . Traps Extracted . | . . . . . . . . . . . . Installed . | . . . . . . . . . . . . Triggered 1 | . . . . . . . 1 . . . . Exploded 1 | . . . . . 1 . . . . . . Machines | -11 -10 -10 -9 -9 -9 -8 -8 -7 -6 -5 -4 ---------- Run | Scr Mat Min Mat Min Exi Min Mat Fac Fac Fac Fac Machines Disabled 7 | . 3 1 1 . . . 2 . . . . Max in Single Turn 1 | . 1 1 1 . . . 1 . . . . Garrison Access 2 | . . . . . . . 1 . . . 1 Machines Sabotaged . | . . . . . . . . . . . . Garrisons Compromised . | . . . . . . . . . . . . Overloaded Fab Kills . | . . . . . . . . . . . . Fab Network Shutdowns 2 | . . . . . . . . . 1 1 . Hacking | -11 -10 -10 -9 -9 -9 -8 -8 -7 -6 -5 -4 --------- Run | Scr Mat Min Mat Min Exi Min Mat Fac Fac Fac Fac Machines Accessed 84 | . 9 3 15 1 2 . 13 6 14 11 10 Terminals 47 | . 6 2 10 . . . 7 3 8 7 4 Fabricators 9 | . . . . . . . . 1 3 3 2 Repair Stations 10 | . 1 . 2 . . . 2 1 2 . 2 Recycling Units 8 | . 2 . 2 . . . 2 . 1 1 . Scanalyzers 2 | . . . 1 . . . 1 . . . . Garrison Access 4 | . . . . . . . 1 1 . . 2 Total Hacks 328 | . 31 7 57 1 2 . 53 24 60 48 45 Successful 182 | . 15 4 35 1 2 . 28 16 29 25 27 Failed 145 | . 16 2 22 . . . 25 8 31 23 18 Catastrophic 9 | . 2 . . . . . 1 1 1 2 2 Database Lockouts 1 | . . 1 . . . . . . . . . Manual 200 | . 25 6 27 . 1 . 31 13 42 32 23 Terminals 194 | . 22 6 33 . . . 26 9 38 29 31 Fabricators 42 | . . . . . . . . 4 13 17 8 Repair Stations 52 | . 2 . 17 . . . 13 9 7 . 4 Recycling Units 25 | . 7 . 5 . . . 9 . 2 2 . Scanalyzers 5 | . . . 2 . . . 3 . . . . Garrison Access 6 | . . . . . . . 2 2 . . 2 Terminal Hacks 61 | . 6 4 9 1 2 . 3 1 13 10 12 Record 3 | . . . . . 1 . . . . . 2 Part Schematic 13 | . 1 . . . . . 1 . 2 4 5 Robot Analysis 6 | . 3 1 1 . . . 1 . . . . Prototype ID Bank 2 | . . . 1 . . . . . 1 . . Open Door 2 | . . 1 . 1 . . . . . . . Level Access Points 3 | . . . . . . . . . 1 1 1 Branch Access Points 1 | . . . 1 . . . . . . . . Terminal Index 7 | . 1 . 1 . . . 1 1 1 1 1 Fabricator Index 3 | . . . . . . . . . 1 1 1 Recycling Unit Index 2 | . 1 . 1 . . . . . . . . Garrison Index 2 | . . . . . . . . . . 1 1 Unreport Threat 5 | . . . . . . . . . 5 . . Locate Traps 3 | . . 1 2 . . . . . . . . Recall Extermination 3 | . . . . . . . . . 1 1 1 Hauler Manifests 1 | . . . 1 . . . . . . . . Zone Layout 4 | . . 1 1 . . . . . 1 1 . EX-Prototype ID Bank 1 | . . . . . 1 . . . . . . Fabricator Hacks 17 | . . . . . . . . 2 5 6 4 Load Schematic 6 | . . . . . . . . 1 1 2 2 Build 11 | . . . . . . . . 1 4 4 2 Repair Station Hacks 43 | . 2 . 14 . . . 11 8 4 . 4 Scan Component 22 | . 1 . 7 . . . 6 4 2 . 2 Repair 21 | . 1 . 7 . . . 5 4 2 . 2 Recycling Unit Hacks 3 | . 1 . . . . . 1 . . 1 . Retrieve Components 3 | . 1 . . . . . 1 . . 1 . Scanalyzer 5 | . . . 2 . . . 3 . . . . Insert Component 3 | . . . 1 . . . 2 . . . . Analyze 2 | . . . 1 . . . 1 . . . . Garrison Access Hacks 2 | . . . . . . . 1 . . . 1 Seal Access 2 | . . . . . . . 1 . . . 1 Unauthorized Hacks 51 | . 6 . 10 . . . 9 5 7 8 6 Terminals 31 | . 4 . 8 . . . 6 2 3 4 4 Track 2 | . . . 1 . . . . . . . 1 Assimilate 3 | . . . . . . . 2 . . 1 . Botnet 21 | . 3 . 5 . . . 4 2 2 3 2 Disrupt 1 | . . . . . . . . . 1 . . Operators 4 | . 1 . 2 . . . . . . . 1 Fabricators 11 | . . . . . . . . 2 4 4 1 Report 3 | . . . . . . . . 1 1 1 . Siphon 4 | . . . . . . . . . 2 1 1 Haulers 3 | . . . . . . . . 1 1 1 . Download 1 | . . . . . . . . . . 1 . Repair Stations . | . . . . . . . . . . . . Recycling Units 7 | . 2 . 2 . . . 3 . . . . Reject 2 | . 1 . . . . . 1 . . . . Mask 5 | . 1 . 2 . . . 2 . . . . Scanalyzers . | . . . . . . . . . . . . Garrison Access 2 | . . . . . . . . 1 . . 1 Watchers 2 | . . . . . . . . 1 . . 1 Data Cores Recovered . | . . . . . . . . . . . . Used . | . . . . . . . . . . . . Hacking Detections 55 | . 8 . 14 . . . 12 2 7 6 6 Full Trace Events 16 | . 2 . 6 . . . 6 . 1 . 1 Feedback Events 1 | . . . 1 . . . . . . . . Corruption 1 | . . . 1 . . . . . . . . Feedback Blocked . | . . . . . . . . . . . . Robot Schematics Acquired . | . . . . . . . . . . . . Robots Built . | . . . . . . . . . . . . Matter . | . . . . . . . . . . . . Time . | . . . . . . . . . . . . Total Robot Build Rating . | . . . . . . . . . . . . Part Schematics Acquired 16 | . 1 . 1 . . . 2 . 2 5 5 Parts Built 13 | . . . . . . . . 1 6 4 2 Matter 1734 | . . . . . . . . 285 460 574 415 Time 680 | . . . . . . . . 152 259 170 99 Total Part Build Rating 81 | . . . . . . . . 5 34 28 14 Parts Repaired 21 | . 1 . 7 . . . 5 4 2 . 2 Time 958 | . 32 . 284 . . . 210 192 98 . 142 Parts Recycled . | . . . . . . . . . . . . Recycled Matter . | . . . . . . . . . . . . Retrieved Matter . | . . . . . . . . . . . . Retrieved Components 13 | . . . . . . . 10 . . 3 . Parts Scanalyzed 2 | . . . 1 . . . 1 . . . . Part Schematics Acquired 2 | . . . 1 . . . 1 . . . . Parts Damaged . | . . . . . . . . . . . . Bothacking | -11 -10 -10 -9 -9 -9 -8 -8 -7 -6 -5 -4 ------------ Run | Scr Mat Min Mat Min Exi Min Mat Fac Fac Fac Fac Used RIF Installer . | . . . . . . . . . . . . Robots Hacked 4 | . . . . . 4 . . . . . . Non-combat 3 | . . . . . 3 . . . . . . Combat 1 | . . . . . 1 . . . . . . Robot Hacks Applied 4 | . . . . . 4 . . . . . . parse_system 4 | . . . . . 4 . . . . . . Relay Couplers Released . | . . . . . . . . . . . . Robots Rewired . | . . . . . . . . . . . . Allies Hacked . | . . . . . . . . . . . . Hacks Repelled . | . . . . . . . . . . . . Allies | -11 -10 -10 -9 -9 -9 -8 -8 -7 -6 -5 -4 -------- Run | Scr Mat Min Mat Min Exi Min Mat Fac Fac Fac Fac Total Allies 2 | . . . . 1 . . 1 . . . . Largest Group 1 | . . . . 1 1 1 1 1 . . . Highest-Rated Group 31 | . . . . 31 31 31 31 10 . . . Highest-Rated Ally 31 | . . . . 31 31 31 31 10 . . . Total Orders 4 | . . . . . . . . 4 . . . EXPLORE 4 | . . . . . . . . 4 . . . Ally Attacks 17 | . . . . . . 6 11 . . . . Total Damage 271 | . . . . . . 127 144 . . . . Kills 8 | . . . . . . 4 4 . . . . Allies Corrupted . | . . . . . . . . . . . . Allies Melted . | . . . . . . . . . . . . Intel | -11 -10 -10 -9 -9 -9 -8 -8 -7 -6 -5 -4 ------- Run | Scr Mat Min Mat Min Exi Min Mat Fac Fac Fac Fac Robot Analysis Total 6 | . 3 1 1 . . . 1 . . . . Derelict Logs Recovered 2 | . . 1 . 1 . . . . . . . Drone Launches 4 | . . . . . . . . 4 . . . Drone Recoveries 3 | . . . . . . . . 3 . . . Exploration | -11 -10 -10 -9 -9 -9 -8 -8 -7 -6 -5 -4 ------------- Run | Scr Mat Min Mat Min Exi Min Mat Fac Fac Fac Fac Turns Passed 19962 | 70 1692 1284 4187 1063 1060 438 5436 2051 1284 559 838 Spaces Moved 11837 | 37 858 623 1825 528 504 192 2071 564 2048 1113 1474 Core 176 | 37 139 . . . . . . . . . . Treads 6462 | . 719 623 1825 528 504 192 2071 . . . . Legs . | . . . . . . . . . . . . Wheels . | . . . . . . . . . . . . Hover . | . . . . . . . . . . . . Flight 5199 | . . . . . . . . 564 2048 1113 1474 Fastest Speed 26 | 50 50 160 172 192 172 212 205 169 26 27 27 Average Speed 129 | 50 161 177 179 192 196 212 211 237 31 27 27 Slowest Speed 729 | 50 200 200 192 192 212 212 220 729 96 29 31 Overloaded Moves 5 | . . . . . . . . . 5 . . Propulsion Burnouts . | . . . . . . . . . . . . Robots Hopped 12 | . . . . . . . . . 4 4 4 Cave-ins Triggered . | . . . . . . . . . . . . Exploration Rate (%) 62 | 4 96 93 99 98 68 51 95 35 50 29 29 Regions Visited 11 Branch Regions 4 Pre-discovered Areas 1 | . . . . . 1 . . . . . . Known Exits Taken 7 | . . 1 1 . . 1 1 1 1 1 . Unknown Exits Taken 4 | 1 1 . . 1 1 . . . . . . Scrap Searched 4 | . . 1 . 2 . 1 . . . . . Spaces Dug 76 | . . . . . . . 6 6 30 22 12 Terrain Destroyed 172 | . 4 34 41 . . . 6 23 30 22 12 Melee 76 | . . . . . . . 6 6 30 22 12 Projectile . | . . . . . . . . . . . . AOE 96 | . 4 34 41 . . . . 17 . . . Terrain Rammed . | . . . . . . . . . . . . Walls Destroyed . | . . . . . . . . . . . . Machines Disabled . | . . . . . . . . . . . . Actions | -11 -10 -10 -9 -9 -9 -8 -8 -7 -6 -5 -4 --------- Run | Scr Mat Min Mat Min Exi Min Mat Fac Fac Fac Fac Total 15462 | 59 1085 710 2519 548 580 222 2830 1197 2555 1304 1853 Wait 2425 | . 127 9 479 . 21 28 422 490 385 135 329 Move 11802 | 36 857 622 1824 527 503 191 2070 563 2039 1104 1466 Hop 12 | . . . . . . . . . 4 4 4 Pick Up 153 | 4 25 13 29 2 18 1 47 8 4 1 1 Fast Attach 63 | 4 3 4 7 . 2 . 13 5 12 7 6 Attach 48 | . 6 2 5 . 1 . 11 16 5 . 2 Detach 22 | . 3 1 3 . 2 . 3 8 1 . 1 Swap 103 | . 5 10 17 . 9 . 25 23 5 4 5 Drop 188 | . 10 10 25 3 20 1 53 38 15 7 6 Fire 463 | 15 49 39 128 16 . 1 158 36 11 2 8 Melee 158 | . . . . . 4 . 6 9 74 40 25 Ram 1 | . . . . . . . . 1 . . . Kick . | . . . . . . . . . . . . Crush 6 | . . . 2 . . . 4 . . . . Escape Stasis . | . . . . . . . . . . . . Rewire . | . . . . . . . . . . . . Trap 18 | . . . . . . . 18 . . . . Miscellaneous . | . . . . . . . . . . . . Route ------- -11/Scrapyard -10/Materials (discovered 4 exits: *Mat x3 / *Min) -10/Mines (discovered 2 exits: *Mat x2) -9/Materials (discovered 7 exits: *Mat x3 / *Min x2 / *Sto x2) -9/Mines (discovered 3 exits: *Mat x2 / *Exi) -9/Exiles (discovered 2 exits: [*Min x2]) -8/Mines -8/Materials (discovered 3 exits: *Fac x3) -7/Factory (discovered 3 exits: *Fac / *Low x2) -6/Factory (discovered 5 exits: *Fac x4 / *Low) -5/Factory (discovered 5 exits: *Fac x4 / *Upp) -4/Factory (discovered 5 exits: Res x4 / *Ext) History --------- Turn | Location | Event 9 | -11/Scrapyard | Discovered new exit (range 16) 71 | -11/Scrapyard | Entered Materials 299 | -10/Materials | Discovered new exit (range 13) 306 | -10/Materials | Build established: Mutant 337 | -10/Materials | Discovered new exit (range 15) 719 | -10/Materials | Identified exit to Materials 858 | -10/Materials | Discovered exit to Materials (range 8) 1100 | -10/Materials | Discovered exit to Materials (range 9) 1607 | -10/Materials | Repaired Autogun 1763 | -10/Materials | Entered Mines 1820 | -10/Mines | YI-UF0 nonchalantly dropped a Grenade Launcher on the ground 1903 | -10/Mines | Destroyed YI-UF0 1912 | -10/Mines | Found Prototype Launcher 1918 | -10/Mines | Found Prototype Storage 1926 | -10/Mines | Identified YI-UF0's Bottomless Matter Pit 2015 | -10/Mines | Identified YI-UF0's Doublenader 2018 | -10/Mines | Discovered exit to Materials (range 15) 2065 | -10/Mines | Central database locked down 2165 | -10/Mines | Learned Materials emergency access door positions 2229 | -10/Mines | Assembled infested the area 2234 | -10/Mines | Assisted by a Guerilla fighting off Assembled 2750 | -10/Mines | Met a Derelict shopkeep closing up shop 2949 | -10/Mines | Found a damaged Exp. Sensor Array with a note attached 2949 | -10/Mines | Discovered exit to Materials (range 12) 2953 | -10/Mines | Found Prototype Device 3047 | -10/Mines | Entered Materials 3047 | -9/Materials | Evolved 2 slots: Utility x2 3103 | -9/Materials | Discovered new exit (range 16) 3128 | -9/Materials | Identified exit to Storage 3803 | -9/Materials | Discovered new exit (range 12) 3851 | -9/Materials | Identified exit to Materials 4020 | -9/Materials | Discovered exit to Storage (range 11) 4398 | -9/Materials | Discovered exit to Materials (range 16) 4537 | -9/Materials | Build established: Hauler-Mutant 4580 | -9/Materials | Identified Exp. Sensor Array 5045 | -9/Materials | Repaired Faulty Exp. Sensor Array 5078 | -9/Materials | Repaired Hvy. Assault Rifle 5117 | -9/Materials | Repaired Adv. Treads 5150 | -9/Materials | Repaired Autogun 5232 | -9/Materials | Discovered new exit (range 8) 5354 | -9/Materials | Repaired Hvy. Assault Rifle 5403 | -9/Materials | Repaired Imp. Treads 5442 | -9/Materials | Repaired Adv. Treads 5647 | -9/Materials | Discovered exit to Materials (range 4) 5802 | -9/Materials | Discovered new exit (range 8) 7017 | -9/Materials | Identified exit to Mines 7234 | -9/Materials | Entered Mines 7247 | -9/Mines | Received a Rocket Launcher from a helpful Derelict 7259 | -9/Mines | Discovered exit to Materials (range 8) 7558 | -9/Mines | Discovered exit to Materials (range 9) 7792 | -9/Mines | Learned Materials trap positions 7814 | -9/Mines | Found the Drone Emporium 7824 | -9/Mines | Found Prototype Device 8248 | -9/Mines | Met a Derelict testing a Signal Generator 8289 | -9/Mines | Deemed a non-threat by the Exiles lab entrance 8289 | -9/Mines | Discovered new exit (range 5) 8297 | -9/Mines | Entered Exiles 8297 | -9/Exiles | Accompanied by 1 ally 8326 | -9/Exiles | Discovered new exit (range 15) 8349 | -9/Exiles | Met 8R-AWN 8379 | -9/Exiles | Met EX-HEX 8649 | -9/Exiles | Met EX-DEC 8656 | -9/Exiles | Learned location of Zion (-6) 8827 | -9/Exiles | Discovered new exit (range 10) 8961 | -9/Exiles | Met EX-BIN 8989 | -9/Exiles | Aligned with FarCom system 8991 | -9/Exiles | Given EX-Vault access code 9035 | -9/Exiles | Opened EX-Vault 9045 | -9/Exiles | Found Gui. Plasma Cannon 9052 | -9/Exiles | Found Firepult 9058 | -9/Exiles | Found Supersonic Drone Bay 9099 | -9/Exiles | Warned to stay clear of 0b10 Research branches 9124 | -9/Exiles | Exiles lab attacked by MAIN.C 9357 | -9/Exiles | Stole three prototypes: Supersonic Drone Bay, Gui. Plasma Cannon, Firepult 9357 | -9/Exiles | Entered Mines 9357 | -8/Mines | Accompanied by 1 ally 9715 | -8/Mines | Discovered exit to Materials (range 14) 9795 | -8/Mines | Entered Materials 9795 | -8/Materials | Accompanied by 1 ally 9795 | -8/Materials | Evolved 2 slots: Utility x2 9796 | -8/Materials | Loaded intel: 8 trap records 10025 | -8/Materials | Garrison activated, responded to threat 10548 | -8/Materials | Discovered new exit (range 16) 10893 | -8/Materials | Identified Decoy Drone Bay 11353 | -8/Materials | Repaired Imp. Assault Rifle 11404 | -8/Materials | Repaired Lgt. Angular Momentum Engine 11432 | -8/Materials | Repaired Hcp. Storage Unit 11465 | -8/Materials | Repaired Imp. Ion Engine 12573 | -8/Materials | Repaired Imp. Assault Rifle 13532 | -8/Materials | Discovered new exit (range 10) 13966 | -8/Materials | Discovered new exit (range 15) 14021 | -8/Materials | Identified exit to Factory 15231 | -8/Materials | Entered Factory 15231 | -7/Factory | Accompanied by 1 ally 15231 | -7/Factory | Evolved 2 slots: Power x1, Propulsion x1 15233 | -7/Factory | FarCom data flow suspended 15516 | -7/Factory | Discovered new exit (range 23) 15674 | -7/Factory | Build established: Hacker-Mutant 15862 | -7/Factory | Identified exit to Factory 16089 | -7/Factory | Repaired Lgt. Angular Momentum Engine 16135 | -7/Factory | Repaired Mic. Nuclear Core 16196 | -7/Factory | Repaired Imp. VTOL Module 16235 | -7/Factory | Repaired Imp. Light Armor Plating 16306 | -7/Factory | Discovered new exit (range 5) 16316 | -7/Factory | Identified exit to Lower Caves 16567 | -7/Factory | Fabricated Exp. Sensor Array (x1) 16865 | -7/Factory | Discovered exit to Lower Caves (range 57) 17282 | -7/Factory | Entered another Factory area 17282 | -6/Factory | Evolved 2 slots: Propulsion x1, Utility x1 17422 | -6/Factory | Fabricated Field Propulsion Drive (x2) 17450 | -6/Factory | Repaired Exp. Sensor Array 17544 | -6/Factory | Fabricated Field Propulsion Drive (x2) 17627 | -6/Factory | Build established: Hacker-Sprinter 17665 | -6/Factory | Fabricated Lgt. Fission Core? 17689 | -6/Factory | Local fabrication network quarantined 18099 | -6/Factory | Repaired Field Propulsion Drive 18355 | -6/Factory | Discovered new exit (range 5) 18356 | -6/Factory | Identified exit to Lower Caves 18547 | -6/Factory | Identified exit to Factory 18566 | -6/Factory | Entered another Factory area 18566 | -5/Factory | Evolved 2 slots: Propulsion x2 18690 | -5/Factory | Fabricated Adv. Hacking Suite (x1) 18745 | -5/Factory | Fabricated Adv. Hacking Suite (x1) 18852 | -5/Factory | Fabricated Hyp. Railgun? 18971 | -5/Factory | Local fabrication network quarantined 18975 | -5/Factory | Discovered new exit (range 13) 18977 | -5/Factory | Identified exit to Upper Caves 19061 | -5/Factory | Identified exit to Factory 19125 | -5/Factory | Entered another Factory area 19125 | -4/Factory | Evolved 2 slots: Utility x2 19416 | -4/Factory | Repaired Exp. Sensor Array 19455 | -4/Factory | Fabricated Adv. System Shield (x1) 19549 | -4/Factory | Identified exit to Research 19551 | -4/Factory | Discovered new exit (range 23) 19561 | -4/Factory | Identified exit to Extension 19753 | -4/Factory | Build established: Wizard-Scout 19777 | -4/Factory | Repaired Impulse Thruster 19955 | -4/Factory | Fabricated Com. HERF Cannon (x1) 19963 | -4/Factory | Self-destructed Last Messages --------------- 19955_ U-05 Engineer destroyed. 19955_ Power Conduit explodes. 19955_ K-01 Serf destroyed. 19955_ U-05 Engineer destroyed. 19955_ Power Conduit explodes. 19955_ Subcomponent Replicator disabled. 19955_ Power Conduit explodes. 19955_ K-01 Serf collects debris. 19956_ Dropped Imp. Plasma Cutter. 19956_ Acquired Com. HERF Cannon. 19958_ Y-64 Sentinel destroyed. 19958_ K-01 Serf collects debris. 19958_ U-05 Engineer lays Concrete. 19960_ Com. HERF Cannon destroyed. 19960_ U-05 Engineer lays Concrete. 19961_ K-01 Serf collects debris. 19961_ Impulse Thruster destroyed. 19962_ K-01 Serf cleans the Nuclear Reactor. 19962_ U-05 Engineer lays Concrete. 19963_ K-01 Serf destroyed. Map ----- +----------------------------------------------------+ | ?????????????????????????????????????????????????? | | ?????????????????????????????????????????????????? | | ?????????????????????????????????????????????????? | | ????????????????????????????????????????????w????? | | ?????????????????????????????????????????????????? | | ?????????????????????????????????????????????????? | | ???????##########????????????????????????????????? | | ???????? #????????????????????????????????? | | ???????? #????????????????????????????????? | | ????????? #????????????????????????????????? | | ????????? #????????????????????????????????? | | ?????????? ###########?????????????????s????? | | ??????????# # #??????????????????????? | | ??????????# # """ """ #??????????????????????? | | ???##?????# # """ """ #??????????????????s???? | | ???#"###### # """ """ #??????????????????????? | | ????# # # #?????????????????s????? | | ????# """ # #] " " #???????????? #???s????? | | ????# """ # # ""G"" #?????????? ?????s????? | | ????# """ # g # #???????? ????????????? | | ????# # gh###+##############Y######## "????? | | ????# """ #A h %* "????? | | ????# """ # = = #????????? | | ????# """ # = " #????????? | | ????# # = ^ #????????? | | ????# # =@ #????????? | | #???# # =| #########+#????????? | | ??# ; = #??????????????????? | | ?####+#;; #??????????????????? | | # = #???s??????????????? | | # %! #??????????????????? | | + = s#??????????????????? | | # p p %ss/??????????????????? | | # % % ! s# ?????????????????? | | ?# ###+;; ; # ????????????t???? | | ?# ## # #? ????????????????k | | ??# ## "" "" u " =# #??kR??????????????? | | ??# ## "" "" "" "" # #?? ??????????????? | | ???# ## """ """ """ """ # #??? ?????????????? | | ???# ## """ """ """ """ # k #????#+##+#????????? | | ???# + """ """ """ """ # p#????? ###??????? | | ???# # # #????? ?????? | | ???# ########+########## ###### ??????? | | ??# ?????? | | # ??????? | | + k ^ ??????? | | # """???????? | | ??# k ""????????? | | ???#####+#####+################# ""????????? | | ?????# #??# # ??????????? | +----------------------------------------------------+ Best States ------------- Heat Dissipation 43 Energy Generation 31 Energy Capacity 290 Matter Stores 300 Matter Capacity 300 Sight Range 23 Robot Scan Range 30 Terrain Scan Density 10 Jamming Range 8 Additional Mass Support 9 Armor Coverage 600 Core Shielding 20 Utility Shielding 66 Evasion (%) 64 Recoil Reduction 2 Salvage Targeting 1 Offensive Hacking 40 Defensive Hacking 34 Item Schematics ----------------- Hcp. Storage Unit | -10/Materials | Hacked Exp. Sensor Array | -9/Materials | Scanalyzed System Shield | -8/Materials | Scanalyzed Hacking Suite | -8/Materials | Hacked Adv. Hacking Suite | -6/Factory | Hacked Adv. System Shield | -6/Factory | Hacked Exp. Signal Interpreter | -5/Factory | Hacked Exp. Targeting Computer | -5/Factory | Hacked Powered Armor | -5/Factory | Hacked Exp. Terrain Scanner | -5/Factory | Hacked Antigrav System | -5/Factory | Downloaded Exp. Cesium-ion Thruster | -4/Factory | Hacked Exp. Terrain Scan Processor | -4/Factory | Hacked Adv. Cloaking Device | -4/Factory | Hacked Com. HERF Cannon | -4/Factory | Hacked Exp. Hacking Suite | -4/Factory | Hacked Robot Schematics ------------------ None Fabricated ------------ Exp. Sensor Array | x1 | -7/Factory Field Propulsion Drive | x2 | -6/Factory | Preloaded Field Propulsion Drive | x2 | -6/Factory | Preloaded Lgt. Fission Core | x2 | -6/Factory | Preloaded Adv. Hacking Suite | x1 | -5/Factory Adv. Hacking Suite | x1 | -5/Factory Hyp. Railgun | x2 | -5/Factory | Preloaded Adv. System Shield | x1 | -4/Factory Com. HERF Cannon | x1 | -4/Factory Alien Tech Used ----------------- None Achievements -------------- None Challenges ------------ None Game ------ Seed SiegeGatlingRedistributor Manual? 0 Play Time 02:42:32 Cumulative 241.5 hours Start 2021.01.24 @ 21:22:24 End 2021.01.25 @ 00:05:07 Sessions 1 Manual Loads 0 Difficulty Rogue Special Mode None Game No. 214 Rogue 214 Adventurer 0 Explorer 0 Win Type - Total 1 Types 0/0/0/1/0/0/0/0/0 Lore% 61 Gallery% 72 Achievement% 57 Wizard Run 0 Options --------- ASCII 0 Keyboard 1 Movement Numpad Keybinds 0 Fullscreen 1 Font 12/Terminus Map View 83x54 Tactical HUD 1 Map Filters NONE Filters NONE Steam 1 RUN: 3665cfd1-34ad-456e-af2f-1e613a0d40a3